fUSD/lending_fUSD_20240724
["ID","MTS","AMOUNT","RATE_DAILY","PERIOD"]
[333073167,1721831438444,-57276.6127,0.0001065,2]
[333073168,1721831438454,-150.0,0.00010738,2]
[333073169,1721831438465,-150.0,0.00010741,2]
[333073170,1721831438477,-150.0,0.00010746,2]
[333073171,1721831438487,-150.0,0.00010749,2]
[333073172,1721831438497,-150.0,0.00010763,2]
[333073173,1721831438507,-150.0,0.00010765,2]
[333073174,1721831438517,-150.0,0.00010767,2]
[333073175,1721831438527,-150.0,0.000108,2]
[333073176,1721831438537,-150.0,0.00010801,2]
[333073177,1721831438547,-150.0,0.00010802,2]
[333073178,1721831438557,-252.7134566,0.00010806,2]
[333073179,1721831438567,-150.0,0.0001083,2]
[333073180,1721831438577,-150.0,0.00010835,2]
[333073181,1721831438587,-150.0,0.00010854,2]
[333073182,1721831438597,-150.0,0.00010856,2]
[333073183,1721831438607,-150.0,0.00010864,2]
[333073184,1721831438617,-150.0,0.00010871,2]
[333073185,1721831438627,-150.0,0.00010881,2]
[333073186,1721831438636,-150.0,0.00010882,2]
[333073187,1721831438646,-150.0,0.00010882,2]
[333073188,1721831438658,-150.0,0.00010885,2]
[333073189,1721831438667,-150.0,0.0001089,2]
[333073190,1721831438676,-150.0,0.00010893,2]
[333073191,1721831438686,-1030.0,0.000109,2]
[333073192,1721831438696,-150.0,0.00010913,2]
[333073193,1721831438705,-150.0,0.00010916,2]
[333073194,1721831438715,-150.0,0.00010927,2]
[333073195,1721831438727,-150.0,0.00010938,2]
[333073196,1721831438738,-43057.00832684,0.0001095,2]
[333073197,1721831438748,-150.0,0.00010951,2]
[333073198,1721831438757,-150.0,0.00010952,2]
[333073199,1721831438767,-150.0,0.00010956,2]
[333073200,1721831438776,-500.0,0.00010958,2]
[333073201,1721831438786,-500.0,0.00010958,2]
[333073202,1721831438796,-511.06469758,0.00010958,2]
[333073203,1721831438805,-500.0,0.00010958,2]
[333073204,1721831438815,-641.97281661,0.00010958,2]
[333073205,1721831438824,-342.03616788,0.00010958,2]
[333073206,1721831438834,-160.28139452,0.00010958,2]
[333073207,1721831438843,-382.80882681,0.00010958,2]
[333073208,1721831438853,-500.0,0.00010958,2]
[333073209,1721831438863,-500.0,0.00010958,2]
[333073210,1721831438873,-500.0,0.00010958,2]
[333073211,1721831438882,-500.0,0.00010958,2]
[333073213,1721831438891,-271.47,0.00010959,5]
[333073214,1721831438900,-150.0,0.00010959,2]
[333073218,1721831438971,-150.0,0.00010959,2]
[333073219,1721831438981,-150.0,0.0001096,2]
[333073220,1721831438990,-150.0,0.00010962,2]
[333073221,1721831438999,-150.0,0.00010962,2]
[333073222,1721831439008,-150.0,0.00010973,2]
[333073223,1721831439017,-150.0,0.00010974,2]
[333073224,1721831439026,-150.0,0.00010974,2]
[333073225,1721831439035,-150.0,0.00010975,2]
[333073226,1721831439044,-150.0,0.00010976,2]
[333073227,1721831439055,-150.0,0.00010977,2]
[333073228,1721831439063,-1500.0,0.00010978,2]
[333073229,1721831439072,-1500.0,0.00010984,2]
[333073230,1721831439082,-150.0,0.00010985,2]
[333073231,1721831439091,-1500.0,0.00010986,2]
[333073232,1721831439100,-150.0,0.00010986,2]
[333073233,1721831439112,-150.0,0.00010991,2]
[333073234,1721831439121,-1500.0,0.00010991,2]
[333073235,1721831439130,-150.0,0.00010995,2]
[333073236,1721831439139,-150.0,0.00010996,2]
[333073237,1721831439147,-57888.8012008,0.00010996,2]
[333073238,1721831439375,-333.49437701,0.00010996,2]
[333073239,1721831439386,-1068.89864221,0.00010996,2]
[333073240,1721831439402,-112512.48775865,0.00010996,2]
[333073241,1721831439412,-2138.94362949,0.00010996,2]
[333073242,1721831439421,-150.0,0.00010997,2]
[333073243,1721831439431,-17111.54903592,0.00010997,2]
[333073244,1721831439440,-41.51472681,0.00010999,2]
[333073245,1721831439450,-9236.68269313,0.00010999,2]
[333073246,1721831439459,-1500.0,0.00010999,2]
[333073247,1721831439469,-500.0,0.00010999,2]
[333073248,1721831439483,-304.50647139,0.00010999,2]
[333073249,1721831439493,-500.0,0.00010999,2]
[333073250,1721831439503,-500.0,0.00010999,2]
[333073251,1721831439512,-365.22095699,0.00010999,2]
[333073252,1721831439523,-500.0,0.00010999,2]
[333073253,1721831439533,-500.0,0.00010999,2]
[333073254,1721831439543,-648.42539521,0.00010999,2]
[333073255,1721831439552,-621.0,0.00011,2]
[333073256,1721831439562,-810.0,0.00011,2]
[333073257,1721831439571,-450.0,0.00011,2]
[333073258,1721831439581,-493.721,0.00011,2]
[333073259,1721831439590,-1555.72,0.00011,2]
[333073260,1721831439600,-150.0,0.00011,2]
[333073262,1721831439609,-1121.894,0.00011,2]
[333073263,1721831439619,-1829.0,0.00011,2]
[333073264,1721831439628,-362.0,0.00011,2]
[333073265,1721831439637,-5156.725,0.00011,2]
[333073266,1721831439646,-5827.0,0.00011,2]
[333073267,1721831439658,-248.809,0.00011,2]
[333073268,1721831439667,-1201.0,0.00011,2]
[333073269,1721831439677,-1254.0,0.00011,2]
[333073270,1721831439686,-145321.10937464,0.00011,2]
[333073271,1721831439699,-599.1736,0.00011,2]
[333073272,1721831439709,-15988.47165043,0.00011,2]
[333073273,1721831439721,-771.07115909,0.00011,2]
[333073274,1721831439732,-574.98736815,0.00011,2]
[333073275,1721831439776,-1374.7667779,0.00011,2]
[333073276,1721831439787,-1264.71562,0.00011,2]
[333073277,1721831439797,-4295.9824655,0.00011,2]
[333073278,1721831439849,-411.38205792,9.962e-05,2]
[333073279,1721831439858,-177066.05855018,0.00011,2]
[333073280,1721831439869,-626.34199075,0.00011,2]
[333073281,1721831439879,-334.43213192,0.00011,2]
[333073282,1721831439890,-3008.08311096,0.00011,2]
[333073283,1721831439902,-727.40483639,0.00011,2]
[333073284,1721831439914,-1604.46511187,0.00011,2]
[333073285,1721831439925,-5045.4,0.00011,2]
[333073286,1721831439986,-643.23488832,0.00011,2]
[333073287,1721831439997,-1120.07585,0.00011,2]
[333073309,1721831442745,-150.0,0.00010771,2]
[333073310,1721831442756,-150.0,0.00010803,2]
[333073311,1721831442767,-150.0,0.00010857,2]
[333073312,1721831442777,-150.0,0.0001086,2]
[333073313,1721831442786,-150.0,0.00010896,2]
[333073314,1721831442796,-150.0,0.00010912,2]
[333073315,1721831442806,-150.0,0.00010966,2]
[333073316,1721831442815,-150.0,0.00010974,2]
[333073317,1721831442824,-150.0,0.00010979,2]
[333073318,1721831442833,-20636.27470492,0.00011,2]
[333073319,1721831442844,-10877.31968114,0.00011,2]
[333073320,1721831442897,-1627.94664864,0.00011,2]
[333073321,1721831443052,-5220.4589653,0.00011,2]
[333073322,1721831443062,-451570.0839202,0.00011,2]
[333073323,1721831443074,-1188.36907864,0.00011,2]
[333073324,1721831443086,-1130.13614157,0.00011,2]
[333073325,1721831443099,-652.1,0.00011,2]
[333073327,1721831443110,-356.64126508,0.00011,2]
[333073330,1721831443133,-2627.76022133,0.00011,2]
[333073335,1721831445792,-803.98244877,0.00011,2]
[333073336,1721831445845,-7338.02654727,0.00011,2]
[333073337,1721831446039,-623.29641964,0.00011,2]
[333073338,1721831446050,-866.26068134,0.00011,2]
[333073339,1721831446099,-178.44289902,0.00011,2]
[333073340,1721831446108,-267181.11069586,0.00011,2]
[333074244,1721831590930,507.82,8.219e-05,2]
[333074245,1721831615040,411.38205792,8.219e-05,2]
[333074246,1721831640615,20010.80112,8.219e-05,2]
[333074247,1721831716042,411.38205792,8.219e-05,2]
[333074248,1721831799148,279.01573449,8.219e-05,2]
[333074249,1721832133486,482.42,8.219e-05,2]
[333074554,1721832633220,-1042.5,9.356e-05,2]
[333074561,1721832633472,-9496.71389071,9.356e-05,2]
[333074562,1721832633485,-4858.62610929,9.356e-05,2]
[333074563,1721832633495,-553.0,9.359e-05,2]
[333074564,1721832633506,-2249.6,9.36e-05,2]
[333074565,1721832633516,-2690.63,9.653e-05,2]
[333074566,1721832633527,-214.5,9.653e-05,2]
[333074567,1721832633538,-214.5,9.655e-05,2]
[333074568,1721832633549,-214.5,9.658e-05,2]
[333074569,1721832633559,-500.0,9.658e-05,2]
[333074570,1721832633569,-214.5,9.66e-05,2]
[333074571,1721832633580,-214.5,9.663e-05,2]
[333074572,1721832633590,-214.5,9.666e-05,2]
[333074573,1721832633601,-214.5,9.668e-05,2]
[333074574,1721832633611,-300.0,9.67e-05,2]
[333074575,1721832633621,-214.5,9.671e-05,2]
[333074576,1721832633632,-214.5,9.673e-05,2]
[333074577,1721832633642,-214.5,9.676e-05,2]
[333074578,1721832633653,-214.5,9.678e-05,2]
[333074579,1721832633664,-214.5,9.681e-05,2]
[333074580,1721832633675,-214.5,9.683e-05,2]
[333074581,1721832633687,-166.60059188,9.684e-05,2]
[333074582,1721832633699,-10022.15728006,9.684e-05,2]
[333074583,1721832633710,-214.5,9.686e-05,2]
[333074584,1721832633722,-214.5,9.688e-05,2]
[333074585,1721832633733,-214.5,9.691e-05,2]
[333074586,1721832633744,-214.5,9.694e-05,2]
[333074587,1721832633755,-214.5,9.696e-05,2]
[333074588,1721832633766,-214.5,9.699e-05,2]
[333074589,1721832633777,-214.5,9.701e-05,2]
[333074590,1721832633788,-300.9088,9.826e-05,2]
[333074592,1721832633800,-216.42,9.849e-05,2]
[333074594,1721832633811,-600.0,9.861e-05,2]
[333074596,1721832633821,-1961.68,9.877e-05,2]
[333074598,1721832633832,-400.0,9.9e-05,3]
[333074600,1721832633842,-144.1092362,9.902e-05,2]
[333074602,1721832633856,-105.8907638,9.902e-05,2]
[333074603,1721832633867,-182.71640461,9.953e-05,2]
[333074604,1721832633880,-400.0,9.961e-05,2]
[333074605,1721832633892,-168.61,9.961e-05,2]
[333074606,1721832633902,-153.03856832,9.984e-05,2]
[333074607,1721832633915,-800.0,0.0001,3]
[333074608,1721832633926,-1300.0,0.000101,3]
[333074609,1721832633937,-1036.79072581,0.000102,2]
[333074610,1721832634004,-1119.34044571,0.000102,2]
[333074611,1721832634015,-1700.0,0.000102,3]
[333074612,1721832634025,-68.71496523,0.000103,3]
[333074613,1721832634039,-1394.36119786,0.000103,3]
[333074614,1721832634052,-706.11031433,0.000103,3]
[333074615,1721832634064,-30.81352258,0.000103,3]
[333074616,1721832634074,-400.0,0.000104,3]
[333074617,1721832634085,-482.42,0.00010474,2]
[333074618,1721832634096,-400.0,0.000105,3]
[333074619,1721832634106,-258.2357,0.0001055,2]
[333074620,1721832634118,-182.71640461,0.00010567,2]
[333074621,1721832634129,-400.0,0.000106,3]
[333074622,1721832634139,-150.0,0.0001063,2]
[333074623,1721832634149,-420.0,0.00010637,2]
[333074624,1721832634159,-150.0,0.00010649,2]
[333074625,1721832634173,-2452.4625,0.0001065,2]
[333074626,1721832634183,-400.0,0.000107,3]
[333074627,1721832634193,-188.02784338,0.00010748,2]
[333074628,1721832634206,-300.0,0.00010767,2]
[333074629,1721832634216,-499.99,0.00010767,2]
[333074630,1721832634226,-1386.33856205,0.00010782,2]
[333074631,1721832634237,-300.0,0.00010783,2]
[333074632,1721832634247,-150.0,0.00010785,2]
[333074633,1721832634257,-800.0,0.000108,3]
[333074634,1721832634267,-23626.18350725,0.000108,2]
[333074635,1721832634278,-150.0,0.0001083,2]
[333074636,1721832634288,-300.0,0.00010836,2]
[333074637,1721832634299,-1500.0,0.00010856,2]
[333074638,1721832634309,-150.0,0.00010875,2]
[333074639,1721832634319,-1500.0,0.00010886,2]
[333074640,1721832634329,-1134.0,0.0001089,2]
[333074641,1721832634339,-6690.0,0.000109,2]
[333074642,1721832634349,-5139.035,0.000109,2]
[333074643,1721832634359,-500.0,0.000109,2]
[333074644,1721832634369,-6739.3533,0.000109,2]
[333074645,1721832634380,-1000.0,0.000109,2]
[333074646,1721832634391,-1549.4171,0.000109,2]
[333074647,1721832634401,-1385.0,0.000109,2]
[333074648,1721832634411,-8334.6724,0.000109,2]
[333074649,1721832634423,-150.0,0.00010912,2]
[333074650,1721832634433,-1500.0,0.00010936,2]
[333074651,1721832634444,-150.0,0.00010944,2]
[333074652,1721832634455,-452.37007472,0.00010958,2]
[333074653,1721832634465,-508.6377639,0.00010958,2]
[333074654,1721832634476,-500.0,0.00010958,2]
[333074655,1721832634486,-370.84421757,0.00010958,2]
[333074656,1721832634497,-500.0,0.00010958,2]
[333074657,1721832634507,-252.74145211,0.00010958,2]
[333074658,1721832634517,-500.0,0.00010958,2]
[333074659,1721832634527,-500.0,0.00010958,2]
[333074660,1721832634537,-500.0,0.00010958,2]
[333074661,1721832634548,-500.0,0.00010958,2]
[333074662,1721832634558,-525.3818975,0.00010958,2]
[333074663,1721832634568,-503.24926848,0.00010958,2]
[333074664,1721832634579,-501.04238684,0.00010958,2]
[333074665,1721832634589,-503.39331574,0.00010958,2]
[333074666,1721832634600,-500.0,0.00010958,2]
[333074667,1721832634611,-580.42,0.00010958,2]
[333074668,1721832634622,-320.29617739,0.00010998,2]
[333074669,1721832634633,-1746.40585764,0.00010999,3]
[333074670,1721832634643,-457.65,0.00010999,2]
[333074671,1721832634654,-1514.25936417,0.00010999,2]
[333074672,1721832634664,-500.0,0.00010999,2]
[333074673,1721832634674,-158.01,0.00010999,2]
[333074674,1721832634685,-520.15526379,0.00010999,2]
[333074675,1721832634696,-500.0,0.00010999,2]
[333074676,1721832634706,-491.49652617,0.00010999,2]
[333074677,1721832634717,-500.0,0.00010999,2]
[333074678,1721832634728,-500.0,0.00010999,2]
[333074679,1721832634738,-367.72744466,0.00010999,2]
[333074680,1721832634749,-500.0,0.00010999,2]
[333074681,1721832634759,-500.0,0.00010999,2]
[333074682,1721832635337,-204.1905,0.00010999,2]
[333074683,1721832635356,-500.0,0.00010999,2]
[333074684,1721832635373,-500.0,0.00010999,2]
[333074685,1721832635383,-466.4,0.00010999,2]
[333074686,1721832635393,-311.013,0.00011,2]
[333074687,1721832635402,-1254.0,0.00011,2]
[333074688,1721832635412,-1829.0,0.00011,2]
[333074689,1721832635423,-450.0,0.00011,2]
[333074690,1721832635433,-445.0,0.00011,2]
[333074691,1721832635443,-810.0,0.00011,2]
[333074692,1721832635452,-182.302,0.00011,2]
[333074693,1721832635462,-5122.0,0.00011,2]
[333074694,1721832635471,-4696.313,0.00011,2]
[333074695,1721832635481,-155.039,0.00011,2]
[333074696,1721832635490,-630.0,0.00011,2]
[333074697,1721832635500,-23024.03069686,0.00011,2]
[333074698,1721832635517,-10497.20122837,0.00011,2]
[333074699,1721832635529,-2807.53512977,0.00011,2]
[333074724,1721832638894,-151.277,0.00010208,2]
[333074725,1721832638904,-151.277,0.00010744,2]
[333074726,1721832638913,-404.30150908,0.00011,2]
[333074727,1721832638927,-9454.7831137,0.00011,2]
[333074728,1721832639062,-1074.0,0.00011,2]
[333074729,1721832639072,-133320.9210864,0.00011,2]
[333074739,1721832640671,-360.95478709,0.00011,2]
[333074741,1721832640683,-348.33,0.00011,2]
[333074743,1721832640694,-2168.59643,0.00011,2]
[333074745,1721832640718,-12621.88558328,0.00011,2]
[333074746,1721832640742,-3059.17987268,0.00011,2]
[333074747,1721832640753,-9514.96547887,0.00011,2]
[333074748,1721832640764,-378.74,0.00011,2]
[333074760,1721832643382,-3262.44251899,0.00011,2]
[333074761,1721832643393,-987.12115492,0.00011,2]
[333074762,1721832643405,-563.1696,0.00011,2]
[333074763,1721832643415,-579.35,0.00011,2]
[333074764,1721832643550,-12973.483531,0.00011,2]
[333074765,1721832643688,-298.975,0.00011,2]
[333074766,1721832643700,-3489.24353956,0.00011,2]
[333074767,1721832643712,-79441.5878515,0.00011,2]
[333074768,1721832643723,-10414.7691043,0.00011,2]
[333074769,1721832643832,-5579.18028061,0.00011,2]
[333074770,1721832643843,-3351.5,0.00011,2]
[333074771,1721832643855,-3158.60889169,0.00011,2]
[333074772,1721832643866,-1668.02297108,0.00011,2]
[333074843,1721832645993,-520.72464615,9.962e-05,2]
[333074845,1721832646004,-150.0,0.00011,2]
[333074847,1721832646014,-780.441067,0.00011,2]
[333074850,1721832646032,-1348.24207892,0.00011,2]
[333074852,1721832646044,-5068.20603297,0.00011,2]
[333074855,1721832646056,-3283.489584,0.00011,2]
[333074857,1721832646069,-688.87014568,0.00011,2]
[333074859,1721832646082,-2609.99752265,0.00011,2]
[333074861,1721832646093,-508.5,0.00011,2]
[333074863,1721832646105,-2800.21661438,0.00011,2]
[333074866,1721832646117,-1246.58900404,0.00011,2]
[333074869,1721832646141,-305.59633293,9.962e-05,2]
[333074871,1721832646151,-607.01680472,0.00011,2]
[333074873,1721832646163,-644.05,0.00011,2]
[333074875,1721832646175,-262.54146489,0.00011,2]
[333074878,1721832646190,-11182.99173202,0.00011,2]
[333074880,1721832646203,-1679.475,0.00011,2]
[333074882,1721832646215,-12115.36860853,0.00011,2]
[333074885,1721832646231,-5765.15875691,0.00011,2]
[333074927,1721832696045,477.85,8.343e-05,2]
[333074929,1721832963604,660.46156924,8.343e-05,2]
[333075267,1721833535364,471.66,8.219e-05,2]
[333075288,1721833832196,-377.86782155,9.501e-05,2]
[333075289,1721833833152,-20.13217845,9.501e-05,2]
[333075290,1721833833163,-247.0,9.501e-05,2]
[333075291,1721833833172,-190.15952234,9.501e-05,2]
[333075292,1721833833185,-109.84047766,9.501e-05,2]
[333075293,1721833833194,-891.50792234,9.502e-05,2]
[333075294,1721833833205,-1041.04,9.502e-05,2]
[333075295,1721833833217,-2007.456,9.502e-05,2]
[333075296,1721833833228,-1012.42800762,9.502e-05,2]
[333075297,1721833833243,-5047.56807004,9.502e-05,2]
[333075298,1721833833253,-200.0,9.51e-05,2]
[333075299,1721833833263,-23517.03,9.538e-05,2]
[333075300,1721833833272,-200.0,9.602e-05,2]
[333075301,1721833833282,-168.61,9.602e-05,2]
[333075302,1721833833292,-250.0,9.647e-05,2]
[333075303,1721833833301,-3593.88,9.698e-05,2]
[333075304,1721833833310,-1000.0,9.816e-05,2]
[333075305,1721833833320,-251.70802743,9.923e-05,2]
[333075306,1721833833329,-150.0,9.961e-05,2]
[333075307,1721833833338,-9999.99,9.962e-05,2]
[333075308,1721833833349,-34801.3,9.962e-05,2]
[333075309,1721833833358,-150.99,9.962e-05,2]
[333075310,1721833833368,-182.45,9.996e-05,2]
[333075311,1721833833378,-3035.95,9.996e-05,2]
[333075312,1721833833388,-165.5472189,0.00010099,2]
[333075313,1721833833398,-874.44230722,0.00010113,2]
[333075314,1721833833408,-293.25626387,0.00010113,2]
[333075315,1721833833418,-371.74643697,0.00010113,2]
[333075316,1721833833427,-947.3593045,0.00010113,2]
[333075317,1721833833437,-487.09,0.00010113,2]
[333075318,1721833833447,-499.99,0.00010113,2]
[333075319,1721833833457,-178.34,0.00010166,2]
[333075320,1721833833467,-153.03856832,0.00010197,2]
[333075321,1721833833476,-2512.77542143,0.00010313,2]
[333075322,1721833833486,-420.0,0.00010451,2]
[333075323,1721833833495,-2072.99729379,0.00010455,2]
[333075324,1721833833508,-471.66,0.00010456,2]
[333075325,1721833833519,-300.0,0.00010551,2]
[333075326,1721833833528,-169.8074028,0.00010566,2]
[333075327,1721833833538,-204.0,0.0001071,2]
[333075328,1721833833549,-866.26,0.00010722,2]
[333075329,1721833833558,-3422.507,0.00010722,2]
[333075330,1721833833568,-317.014,0.00010722,2]
[333075331,1721833833578,-1056.10276261,0.0001078,2]
[333075332,1721833833588,-1091.75802729,0.0001078,2]
[333075333,1721833833599,-5604.0,0.00010783,2]
[333075334,1721833833608,-3000.0,0.0001089,2]
[333075335,1721833833619,-4232.33874943,0.00010899,2]
[333075336,1721833833629,-500.0,0.000109,2]
[333075337,1721833833638,-1299.5345,0.000109,2]
[333075338,1721833833648,-26552.2729,0.000109,2]
[333075339,1721833833657,-9018.19855339,0.000109,2]
[333075340,1721833833669,-737.50082379,0.000109,2]
[333075345,1721833838906,-151.277,0.0001078,2]
[333075346,1721833838916,-645.17091203,0.000109,2]
[333075347,1721833838928,-1698.02186945,0.000109,2]
[333075348,1721833838940,-72206.65144113,0.000109,2]
[333075349,1721833839070,-4018.91771306,0.000109,2]
[333075350,1721833839082,-2167.81906899,0.000109,2]
[333075351,1721833839094,-408.66224937,0.000109,2]
[333075352,1721833839106,-379.0537699,0.000109,2]
[333075353,1721833839118,-8720.00359889,0.000109,2]
[333075354,1721833839129,-1000.0,0.000109,2]
[333075355,1721833839138,-47484.51173688,0.000109,2]
[333075356,1721833839150,-1498.39135129,0.000109,2]
[333075357,1721833839234,-44323.05118849,0.000109,2]
[333075358,1721833839245,-316.70671905,0.000109,2]
[333075359,1721833839256,-264.24,0.000109,2]
[333075360,1721833839268,-22957.09900429,0.000109,2]
[333075361,1721833839277,-169.07856241,0.000109,2]
[333075362,1721833839288,-204.0,0.0001093,2]
[333075363,1721833839299,-200.11792725,0.00010945,2]
[333075364,1721833839308,-500.0,0.00010958,2]
[333075365,1721833839319,-500.0,0.00010958,2]
[333075366,1721833839329,-500.0,0.00010958,2]
[333075367,1721833839339,-492.27892813,0.00010958,2]
[333075395,1721833840043,-7.72107187,0.00010958,2]
[333075398,1721833840053,-525.50769677,0.00010958,2]
[333075400,1721833840063,-528.25281299,0.00010958,2]
[333075402,1721833840073,-500.0,0.00010958,2]
[333075403,1721833840083,-500.0,0.00010958,2]
[333075404,1721833840093,-500.0,0.00010958,2]
[333075405,1721833840103,-500.0,0.00010958,2]
[333075406,1721833840113,-500.0,0.00010958,2]
[333075408,1721833840122,-513.34259898,0.00010958,2]
[333075409,1721833840131,-536.84605193,0.00010958,2]
[333075410,1721833840141,-500.0,0.00010958,2]
[333075411,1721833840150,-338.0226125,0.00010958,2]
[333075412,1721833840160,-497.07359394,0.00010958,2]
[333075413,1721833840170,-500.0,0.00010958,2]
[333075414,1721833840179,-271.68,0.00010959,2]
[333075415,1721833840189,-152.28,0.0001099,2]
[333075416,1721833840199,-152.28,0.0001099,2]
[333075417,1721833840207,-152.28,0.0001099,2]
[333075418,1721833840216,-152.28,0.0001099,2]
[333075419,1721833840226,-152.28,0.0001099,2]
[333075420,1721833840235,-152.28,0.0001099,2]
[333075421,1721833840245,-152.28,0.0001099,2]
[333075422,1721833840257,-152.28,0.0001099,2]
[333075423,1721833840266,-152.28,0.0001099,2]
[333075424,1721833840276,-152.28,0.0001099,2]
[333075425,1721833840286,-152.28,0.0001099,2]
[333075426,1721833840295,-152.28,0.0001099,2]
[333075427,1721833840305,-152.28,0.0001099,2]
[333075428,1721833840314,-152.28,0.0001099,2]
[333075429,1721833840323,-152.28,0.0001099,2]
[333075430,1721833840332,-152.28,0.0001099,2]
[333075431,1721833840342,-1058.2741423,0.00010994,2]
[333075432,1721833840354,-3203.99941872,0.00010994,2]
[333075433,1721833840580,-12096.24516548,0.00010994,2]
[333075434,1721833840591,-500.0,0.00010999,2]
[333075435,1721833840600,-500.0,0.00010999,2]
[333075436,1721833840609,-502.88496892,0.00010999,2]
[333075437,1721833840618,-500.0,0.00010999,2]
[333075438,1721833840628,-500.0,0.00010999,2]
[333075439,1721833840637,-546.77,0.00010999,2]
[333075440,1721833840646,-504.87088019,0.00010999,2]
[333075441,1721833840655,-501.5604124,0.00010999,2]
[333075442,1721833840665,-521.19268013,0.00010999,2]
[333075443,1721833840674,-500.0,0.00010999,2]
[333075444,1721833840684,-313.17556056,0.00010999,2]
[333075445,1721833840693,-500.0,0.00010999,2]
[333075446,1721833840703,-500.0,0.00010999,2]
[333075447,1721833840712,-619.26746932,0.00010999,2]
[333075448,1721833840721,-500.0,0.00010999,2]
[333075449,1721833840730,-292.80110299,0.00010999,2]
[333075450,1721833840739,-535.2488635,0.00010999,2]
[333075451,1721833840748,-500.0,0.00010999,2]
[333075452,1721833840757,-323.51,0.00010999,2]
[333075453,1721833840767,-465.43622528,0.00010999,2]
[333075454,1721833840776,-1254.0,0.00011,2]
[333075455,1721833840786,-1829.0,0.00011,2]
[333075456,1721833840795,-450.0,0.00011,2]
[333075457,1721833840806,-810.0,0.00011,2]
[333075458,1721833840815,-445.0,0.00011,2]
[333075459,1721833840825,-500.0,0.00011,2]
[333075460,1721833840835,-148314.69863122,0.00011,2]
[333075461,1721833840854,-1619.20385,0.00011,2]
[333075462,1721833840865,-338.0226125,0.00011,2]
[333075474,1721833843293,-2016.5792822,0.00011,2]
[333075475,1721833843304,-6411.89114171,0.00011,2]
[333075476,1721833843315,-308.94361421,0.00011,2]
[333075478,1721833843326,-412.39,0.00011,2]
[333075479,1721833843337,-795.92013436,0.00011,2]
[333075480,1721833843394,-5976.31321052,0.00011,2]
[333075481,1721833843405,-312.004999,0.00011,2]
[333075482,1721833843415,-1150.377831,0.00011,2]
[333075483,1721833843426,-1067.81353758,0.00011,2]
[333075484,1721833843437,-455.24917089,0.00011,2]
[333075485,1721833843500,-350.62,0.00011,2]
[333075486,1721833843514,-2448.6,0.00011,2]
[333075487,1721833843525,-500.0,0.00011,2]
[333075488,1721833843536,-372853.83807383,0.00011,2]
[333075489,1721833843618,-1031.497246,0.00011,2]
[333075490,1721833843630,-292.5,0.00011,2]
[333075491,1721833843641,-344.447979,0.00011,2]
[333075496,1721833846263,-1891.29763656,0.00011,2]
[333075497,1721833848410,-5694.90227695,0.00011,2]
[333075498,1721833848548,-555.0,0.00011,2]
[333075499,1721833848561,-3344.97034137,0.00011,2]
[333075500,1721833848573,-628.47084507,0.00011,2]
[333075501,1721833848713,-1795.36741921,0.00011,2]
[333075502,1721833848725,-828.46681849,0.00011,2]
[333075510,1721834103103,442.19,8.219e-05,2]
[333075511,1721834140652,19973.34422136,8.219e-05,2]
[333075512,1721834448790,363.52548521,8.219e-05,2]
[333075513,1721834472599,20364.42437513,8.219e-05,2]
[333075514,1721834473589,10577.23301965,8.219e-05,2]
[333075515,1721834481210,3935.56896003,8.219e-05,2]
[333075516,1721834523799,363.52548521,8.219e-05,2]
[333075517,1721834579440,20361.20094563,8.219e-05,2]